Cogmind - Beta 13 @@@ ROGUE MODE // 2024.04.12 @ 18:53:23 Player: RD-BKR Result: Destroyed by G-67 Veteran with Plasma Rifle Performance ------------- Evolutions (6) 3000 Regions Visited (10) 2000 Robots Destroyed (42) 210 Value Destroyed (1125) 1125 Prototype IDs (38) 760 Alien Tech Used (0) 0 Bonus (-48) -48 TOTAL SCORE: 7047 Bonus ------- Follower Combat Kills 81 Entered DSFs 500 Aligned with FarCom 300 Friendly Fire -929 Cogmind --------- Core Integrity 0/1150 Matter 51/300 Energy 90/100 System Corruption 21% Temperature Cool (0) Movement Core (50) Location -4/Factory Parts ------- > --- POWER (1) -------- (None) > --- PROPULSION (5) --- Flexi-carbon Leg > --- UTILITY (11) ----- (None) > --- WEAPON (2) ------- (None) > --- INVENTORY (5) ---- Heavy Deuterium Engine Fusion Compressor YI-UF0's Bottomless Matter Pit (1291) Authchip [Device] Authchip [Processor] Peak State ------------ > --- POWER ------------ Fusion Compressor > --- PROPULSION ------- Cesium-ion Thruster Xenon Bombardment Thruster Xenon Bombardment Thruster Xenon Bombardment Thruster Nuclear Pulse Thruster > --- UTILITY ---------- Large Storage Unit Advanced Weight Redist. System Machine Analyzer Hacking Suite Hacking Suite Improved Hacking Suite System Shield > --- WEAPON ----------- Hypervelocity Gauss Rifle Heavy Rocket Launcher > --- INVENTORY -------- Heavy Deuterium Engine Light Angular Momentum Engine Fusion Compressor Armored Wheel Medium Storage Unit YI-UF0's Bottomless Matter Pit Structural Scanner Advanced ECM Suite Force Field Heavy Flail [Rating: 59] Favorites ----------- Power Light Nuclear Core Engine Ion Engine Power Core Light Nuclear Core Propulsion Light Treads Treads Light Treads Leg Flexi-carbon Leg Wheel Wheel Hover Unit Gravmag System Flight Unit Xenon Bombardment Thruster Utility Hacking Suite Device Structural Scanner Storage High-capacity Storage Unit Processor Machine Analyzer Hackware Hacking Suite Protection Light Armor Plating Weapon Enhanced Autogun Energy Gun Medium Laser Energy Cannon Light EM Pulse Cannon Ballistic Gun Enhanced Autogun Ballistic Cannon Mini Assault Cannon Launcher Mini Grenade Launcher Impact Weapon Heavy Flail Build | -11 -10 -10 -10 -9 -8 -7 -6 -5 -5 -4 ------- Run | Yrd Mat Min Exi Min Mat Fac Fac Fac DSF Fac Slots Evolved 12 | . . . . . 4 2 2 2 . 2 Power . | . . . . . . . . . . . Propulsion 3 | . . . . . 2 . . 1 . . Utility 9 | . . . . . 2 2 2 1 . 2 Weapon . | . . . . . . . . . . . Parts Attached 145 | 2 10 2 1 7 31 45 28 1 7 11 Power 15 | . . 1 . . . 5 7 . 1 1 Engine 9 | . . . . . . 4 4 . . 1 Core 6 | . . 1 . . . 1 3 . 1 . Reactor . | . . . . . . . . . . . Propulsion 47 | 2 2 . . . 11 18 7 1 1 5 Treads 14 | 2 2 . . . 10 . . . . . Leg 1 | . . . . . . . . . . 1 Wheel 6 | . . . . . 1 3 . . 1 1 Hover 14 | . . . . . . 11 1 . . 2 Flight 12 | . . . . . . 4 6 1 . 1 Utility 51 | . 4 . 1 2 8 19 13 . 3 1 Device 33 | . 2 . . 1 5 13 9 . 2 1 Storage 5 | . 1 . 1 1 . 1 1 . . . Processor 1 | . . . . . . 1 . . . . Hackware 8 | . . . . . 2 2 3 . 1 . Protection 4 | . 1 . . . 1 2 . . . . Artifact . | . . . . . . . . . . . Weapon 32 | . 4 1 . 5 12 3 1 . 2 4 Energy Gun 2 | . . . . . . 1 . . . 1 Energy Cannon 3 | . 2 . . . 1 . . . . . Ballistic Gun 13 | . 1 1 . 1 8 . . . 1 1 Ballistic Cannon 1 | . . . . . . 1 . . . . Launcher 6 | . . . . 3 . . 1 . 1 1 Special Weapon . | . . . . . . . . . . . Impact Weapon 7 | . 1 . . 1 3 1 . . . 1 Slashing Weapon . | . . . . . . . . . . . Piercing Weapon . | . . . . . . . . . . . Special Melee Weapon . | . . . . . . . . . . . Unidentified Prototypes 6 | . . . . 2 1 1 2 . . . Corrupted Parts 3 | . . . . 1 . . . . . 2 System Corruption 11 | . . . . 3 . . . . . 8 Parts Lost 34 | . . . . . 3 12 1 . 8 10 Power 3 | . . . . . . 2 . . . 1 Propulsion 17 | . . . . . 2 7 . . 3 5 Utility 9 | . . . . . 1 1 1 . 5 1 Weapon 5 | . . . . . . 2 . . . 3 Highest Loss Streak 9 | . . . . . 3 6 1 . 8 9 To Critical Strikes . | . . . . . . . . . . . Average Slot Usage (%) 92 | . 99 100 100 100 89 90 93 88 75 51 Engine 3 | . 14 8 . . . 5 3 5 . 4 Core 5 | . . 5 14 14 9 1 2 . 4 . Treads 18 | . 27 28 28 28 27 13 . . . . Hover 3 | . . . . . . 9 9 . . 7 Flight 4 | . . . . . . 2 16 29 26 11 Device 10 | . 12 14 14 5 9 10 12 11 5 8 Storage 10 | . 14 14 14 22 9 6 6 5 5 4 Processor 1 | . . . . . . 4 6 5 4 . Hackware 11 | . . . . . 13 18 23 23 21 12 Energy Cannon 3 | . 7 14 14 3 . . . . . . Ballistic Gun 8 | . 7 9 14 15 14 5 . . . . Launcher 1 | . . . . 8 1 . 1 . 3 . Impact Weapon 3 | . 6 4 . . 1 3 6 5 . . Naked Turns 72 | . . . . . . . . . . 72 Heaviest Build 66 | 14 32 32 52 59 65 66 33 33 33 36 Greatest Support 86 | 40 40 40 40 40 86 86 45 38 38 33 Greatest Overweight (x) 5 | . 1 . 1 1 5 3 1 . 1 2 Average Overweight (x) . | . . . . 1 . . . . . . Largest Inventory Capacity 20 | 8 15 15 20 20 20 20 15 15 15 15 Average Capacity 15 | 8 9 15 15 20 20 14 10 15 15 13 Most Carried 20 | 6 9 15 15 18 20 20 11 10 15 14 Average Carried 14 | 6 7 13 15 17 19 14 9 10 11 12 Final Capacity 20 | 8 15 15 20 20 20 10 15 15 15 5 Final Carried 20 | 6 9 15 15 18 20 10 11 10 14 5 Class Distribution -------------------- 42% | Mutant 33% | Hacker-Mutant 20% | Hacker-Scout Dominant Class ---------------- Mutant | -10/Materials Mutant | -10/Mines Mutant | -10/Exiles Mutant | -9/Mines Hacker-Mutant | -8/Materials Hacker-Mutant | -7/Factory Hacker-Scout | -6/Factory Hacker-Scout | -5/Factory Hacker-Sprinter | -5/DSF Hacker-Mutant | -4/Factory Resources | -11 -10 -10 -10 -9 -8 -7 -6 -5 -5 -4 ----------- Run | Yrd Mat Min Exi Min Mat Fac Fac Fac DSF Fac Matter Collected 4430 | 161 298 133 . 363 1314 1134 1003 . . 24 Remotely . | . . . . . . . . . . . Salvage Created 1538 | . 170 208 . 200 391 250 58 . . 261 Parts 92 | . 14 14 . 7 21 19 4 . . 13 Haulers Intercepted 3 | . . . . . 3 . . . . . Recyclers Shooed . | . . . . . . . . . . . Parts Field Recycled . | . . . . . . . . . . . Retrieved Matter . | . . . . . . . . . . . Parts Self-Destructed . | . . . . . . . . . . . Prevented . | . . . . . . . . . . . Kills | -11 -10 -10 -10 -9 -8 -7 -6 -5 -5 -4 ------- Run | Yrd Mat Min Exi Min Mat Fac Fac Fac DSF Fac Combat Hostiles Destroyed 28 | . 8 8 . 2 3 4 . . . 3 Guns 15 | . 8 1 . . 3 3 . . . . Cannons 6 | . . 6 . . . . . . . . AOE 5 | . . 1 . 2 . 1 . . . 1 Classes Destroyed 11 | . 3 . . 1 3 3 1 . . . Worker 4 | . . . . . . 1 1 . . 2 Tunneler 1 | . . . . . . . 1 . . . Hauler 3 | . . . . . 3 . . . . . Recycler 1 | . . . . . 1 . . . . . Operator 3 | . . . . . 1 1 1 . . . Watcher 1 | . 1 . . . . . . . . . Swarmer 12 | . 6 6 . . . . . . . . Grunt 10 | . 2 2 . 1 3 . . . . 2 Duelist 1 | . . . . 1 . . . . . . Sentry 1 | . . . . . . 1 . . . . Programmer 4 | . . . . . . 3 . . . 1 Best Kill Streak 5 | . 5 3 . 2 3 1 2 . . 5 Combat Bots Only 5 | . 5 3 . 2 3 1 . . . 3 Max Kills in Single Turn 3 | . 1 1 . 2 1 1 1 . . 3 Gunslinging . | . . . . . . . . . . . Exploded 2 | . . 1 . 2 . 1 . . . 1 Melee . | . . . . . . . . . . . Uniques/NPCs Destroyed 1 | . . . . 1 . . . . . . YI-UF0 (-9/Mines) Combat | -11 -10 -10 -10 -9 -8 -7 -6 -5 -5 -4 -------- Run | Yrd Mat Min Exi Min Mat Fac Fac Fac DSF Fac Hostile Shots Fired 322 | . 27 27 . . 48 77 16 . 11 116 Missed 93 | . 4 7 . . 4 27 11 . 2 38 Damage Taken 4877 | . 248 199 . . 700 1190 93 . 510 1937 Core 1886 | . 59 32 . . 133 267 20 . 206 1169 Absorbed by Shields . | . . . . . . . . . . . Ignored by Resistances 8 | . . . . . . 8 . . . . Core Remaining (%) 79 | 100 . . . 63 75 61 97 . 79 . Volleys Fired 118 | . 19 17 . 7 28 38 . . . 9 Largest 2 | . 2 2 . 2 2 1 . . . 2 Hottest 76 | . 70 76 . 76 76 55 . . . 75 Shots Fired 176 | . 38 28 . 12 48 39 . . . 11 Gun 147 | . 38 11 . 6 46 37 . . . 9 Cannon 26 | . . 17 . 5 2 2 . . . . Launcher 3 | . . . . 1 . . . . . 2 Special . | . . . . . . . . . . . Kinetic 115 | . 19 11 . 6 46 25 . . . 8 Thermal 20 | . 19 . . . . . . . . 1 Explosive 3 | . . . . 1 . . . . . 2 Electromagnetic 38 | . . 17 . 5 2 14 . . . . Robot Hit Streak 17 | . 17 4 . 7 10 8 . . . 2 Robot Miss Streak 4 | . 2 3 . 1 4 2 . . . 2 Penetration Max . | . . . . . . . . . . . Secondary Targets 1 | . 1 . . . . . . . . . Max Gunslinging Chain 1 | . 1 . . . . . . . . . Shots Hit Robots 126 | . 27 13 . 10 34 32 3 . . 7 Core Hits 82 | . 13 10 . 8 15 10 1 . . 25 Critical Kills 2 | . . . . . 2 . . . . . Critical Parts Destroyed 3 | . 1 . . . . 1 . . . 1 Critical Strikes 6 | . 2 . . . 2 1 . . . 1 Burn 1 | . 1 . . . . . . . . . Destroy 1 | . . . . . 1 . . . . . Smash 4 | . 1 . . . 1 1 . . . 1 Melee Attacks 61 | . 7 . . 1 9 12 31 . . 1 Impact 61 | . 7 . . 1 9 12 31 . . 1 Slashing . | . . . . . . . . . . . Piercing . | . . . . . . . . . . . Sneak Attacks 7 | . . . . . 1 4 2 . . . Combat Hostiles . | . . . . . . . . . . . Follow-up Attacks . | . . . . . . . . . . . Damage Inflicted 3393 | . 285 299 . 246 621 745 266 . . 931 Guns 1287 | . 263 11 . 72 510 382 . . . 49 Cannons 354 | . . 257 . 74 23 . . . . . Explosions 904 | . . 26 . 89 . . . . . 789 Melee 778 | . 22 . . . 88 363 266 . . 39 Ramming 70 | . . 5 . 11 . . . . . 54 Kinetic 1055 | . 99 11 . 72 510 342 . . . 21 Thermal 218 | . 164 26 . . . . . . . 28 Explosive 466 | . . . . 89 . . . . . 377 Electromagnetic 806 | . . 257 . 74 23 40 . . . 412 Impact 778 | . 22 . . . 88 363 266 . . 39 Slashing . | . . . . . . . . . . . Piercing . | . . . . . . . . . . . Highest Corruption 21 | . . . . 3 . 9 1 . . 21 Average Corruption 3 | . . . . 3 . 6 1 . . 7 Corruption Purged . | . . . . . . . . . . . Corruption Blocked . | . . . . . . . . . . . Effects 35 | . . . . . . 27 5 . . 3 Message Errors 9 | . . . . . . 7 2 . . . Matter Fused 6 | . . . . . . 5 1 . . . Heat Flow Errors 4 | . . . . . . 3 1 . . . Energy Discharges 8 | . . . . . . 7 . . . 1 Parts Fused 1 | . . . . . . . 1 . . . Data Loss (minor) 2 | . . . . . . 2 . . . . Misfires 1 | . . . . . . 1 . . . . Alerts 3 | . . . . . . 2 . . . 1 Misdirections 1 | . . . . . . . . . . 1 Overload Shots . | . . . . . . . . . . . Overflow Damage 264 | . 22 . . . . 100 103 . . 39 Projectiles . | . . . . . . . . . . . Explosions . | . . . . . . . . . . . Melee 264 | . 22 . . . . 100 103 . . 39 Knockbacks 4 | . . . . 1 . 2 1 . . . Impact 4 | . . . . 1 . 2 1 . . . Kinetic . | . . . . . . . . . . . Secondary . | . . . . . . . . . . . Self-Inflicted Damage 211 | . . 28 . . . . . . . 183 Shots 5 | . . 1 . . . . . . . 4 Rammed 4 | . . 1 . 3 . . . . . . Targets Rammed 4 | . . 1 . 3 . . . . . . Kicked . | . . . . . . . . . . . Crushed . | . . . . . . . . . . . Highest Temperature 215 | . 215 96 . 84 86 176 145 . . . Average Temperature 54 | . 95 34 . 37 33 44 65 . . . Received Heat Transfer 555 | . 75 15 . . 396 51 6 . . 12 Siege Activations . | . . . . . . . . . . . Robots Corrupted 2 | . . . . . . . . . . 2 Combat Hostiles 2 | . . . . . . . . . . 2 Parts Fried 7 | . 1 2 . . . 2 . . . 2 Impact Corruptions 10 | . 2 . . . . 4 3 . . 1 Robots Melted . | . . . . . . . . . . . Combat Hostiles . | . . . . . . . . . . . Parts Melted 1 | . 1 . . . . . . . . . Heat Transferred 605 | . 555 . . . . . . . . 50 Parts Sabotaged . | . . . . . . . . . . . Parts Stolen . | . . . . . . . . . . . Parts Stripped . | . . . . . . . . . . . Power Chain Reactions 1 | . . 1 . . . . . . . . Alert | -11 -10 -10 -10 -9 -8 -7 -6 -5 -5 -4 ------- Run | Yrd Mat Min Exi Min Mat Fac Fac Fac DSF Fac Peak Influence 260 | . 221 195 . 184 79 117 87 17 15 260 Initial 17 | . . 3 . . . 7 6 17 11 7 Average 36 | . 68 48 . 55 10 33 33 17 9 42 Maximum Alert Level 1 | . 1 . . . . . . . . 1 Low Security (%) 98 | 100 86 100 . 100 100 100 100 100 100 98 Level 1 1 | . 13 . . . . . . . . 1 Level 2 . | . . . . . . . . . . . Level 3 . | . . . . . . . . . . . Level 4 . | . . . . . . . . . . . Level 5 . | . . . . . . . . . . . High Security . | . . . . . . . . . . . Max Security . | . . . . . . . . . . . Squads Dispatched 20 | . . . . . 3 10 4 . 1 2 Investigation 2 | . . . . . 1 1 . . . . Extermination 6 | . . . . . . 4 1 . . 1 Reinforcement 9 | . . . . . 2 2 3 . 1 1 Assault . | . . . . . . . . . . . Garrison 3 | . . . . . . 3 . . . . Intercept . | . . . . . . . . . . . Searches Triggered . | . . . . . . . . . . . Construction Impeded . | . . . . . . . . . . . Haulers Reinforced . | . . . . . . . . . . . Active Scanning Responses . | . . . . . . . . . . . Cargo Convoy Interrupts . | . . . . . . . . . . . Stealth | -11 -10 -10 -10 -9 -8 -7 -6 -5 -5 -4 --------- Run | Yrd Mat Min Exi Min Mat Fac Fac Fac DSF Fac Distress Signals 9 | . 3 . . . 1 . 3 . . 2 Communications Jammed . | . . . . . . . . . . . Distress Signals . | . . . . . . . . . . . Times Spotted 89 | . 17 9 . 6 5 17 15 . 2 18 Peak Tracking Total 10 | . 5 3 . 3 3 6 5 . 2 10 Tactical Retreats 12 | . 3 1 . . . 2 2 . 1 3 Traps | -11 -10 -10 -10 -9 -8 -7 -6 -5 -5 -4 ------- Run | Yrd Mat Min Exi Min Mat Fac Fac Fac DSF Fac Traps Triggered 7 | . 1 . . . 3 2 . . 1 . Indirectly . | . . . . . . . . . . . Trap Hack Attempts . | . . . . . . . . . . . Triggered . | . . . . . . . . . . . Disarmed . | . . . . . . . . . . . Reprogrammed . | . . . . . . . . . . . Reused . | . . . . . . . . . . . Traps Extracted . | . . . . . . . . . . . Installed . | . . . . . . . . . . . Triggered . | . . . . . . . . . . . Machines | -11 -10 -10 -10 -9 -8 -7 -6 -5 -5 -4 ---------- Run | Yrd Mat Min Exi Min Mat Fac Fac Fac DSF Fac Machines Disabled 8 | . . . . . . . . . . 8 Max in Single Turn 6 | . . . . . . . . . . 6 Garrison Access 6 | . . . . . 1 . 4 . . 1 Machines Repaired . | . . . . . . . . . . . Machines Dismantled . | . . . . . . . . . . . Machines Sabotaged . | . . . . . . . . . . . Overloaded Fab Kills . | . . . . . . . . . . . Hacking | -11 -10 -10 -10 -9 -8 -7 -6 -5 -5 -4 --------- Run | Yrd Mat Min Exi Min Mat Fac Fac Fac DSF Fac Machines Accessed 59 | . 8 . 1 . 8 15 20 1 . 6 Terminals 44 | . 8 . . . 6 12 13 1 . 4 Fabricators . | . . . . . . . . . . . Repair Stations 1 | . . . . . . . 1 . . . Recycling Units 4 | . . . . . . 1 2 . . 1 Scanalyzers 2 | . . . . . 1 1 . . . . Garrison Access 7 | . . . . . 1 1 4 . . 1 Total Hacks 127 | . 22 . 1 . 25 34 36 1 . 8 Successful 74 | . 10 . 1 . 12 22 25 1 . 3 Failed 53 | . 12 . . . 13 12 11 . . 5 Catastrophic 8 | . . . . . . 5 1 . . 2 Database Lockouts . | . . . . . . . . . . . Manual 72 | . 13 . 1 . 16 18 20 . . 4 Terminals 102 | . 22 . . . 18 27 28 1 . 6 Fabricators . | . . . . . . . . . . . Repair Stations 1 | . . . . . . . 1 . . . Recycling Units 5 | . . . . . . 2 2 . . 1 Scanalyzers 4 | . . . . . 2 2 . . . . Garrison Access 14 | . . . . . 5 3 5 . . 1 Terminal Hacks 39 | . 6 . 1 . 3 13 14 1 . 1 Record 3 | . . . . . . 1 2 . . . Part Schematic 2 | . . . . . . 1 1 . . . Prototype ID Bank 3 | . 2 . . . 1 . . . . . Open DSF 2 | . . . . . . 1 . 1 . . Level Access Points 2 | . . . . . . 1 1 . . . Branch Access Points 2 | . . . . . . 1 1 . . . Machine Index 1 | . . . . . . 1 . . . . Terminal Index 3 | . 1 . . . . 1 1 . . . Fabricator Index 1 | . . . . . . . 1 . . . Garrison Index 1 | . . . . . . . 1 . . . Alert Level 3 | . . . . . . 1 2 . . . Locate Traps 4 | . 1 . . . . 2 1 . . . Extermination Status 1 | . . . . . . . 1 . . . Hauler Manifests 3 | . 1 . . . 1 1 . . . . Registered Components 2 | . 1 . . . . 1 . . . . Zone Layout 5 | . . . . . 1 1 2 . . 1 Derelict Proto ID Bank 1 | . . . 1 . . . . . . . Fabricator Hacks . | . . . . . . . . . . . Repair Station Hacks . | . . . . . . . . . . . Recycling Unit Hacks 4 | . . . . . . 1 2 . . 1 Report Inventory 4 | . . . . . . 1 2 . . 1 Scanalyzer 4 | . . . . . 2 2 . . . . Insert Component 2 | . . . . . 1 1 . . . . Analyze 2 | . . . . . 1 1 . . . . Garrison Access Hacks 6 | . . . . . 1 . 4 . . 1 Seal Access 6 | . . . . . 1 . 4 . . 1 Unauthorized Hacks 21 | . 4 . . . 6 6 5 . . . Terminals 20 | . 4 . . . 6 5 5 . . . Assimilate 7 | . . . . . 2 2 3 . . . Botnet 8 | . 2 . . . 3 2 1 . . . Operators 5 | . 2 . . . 1 1 1 . . . Fabricators . | . . . . . . . . . . . Repair Stations . | . . . . . . . . . . . Recycling Units 1 | . . . . . . 1 . . . . Recyclers 1 | . . . . . . 1 . . . . Scanalyzers . | . . . . . . . . . . . Garrison Access . | . . . . . . . . . . . Data Cores Recovered . | . . . . . . . . . . . Used . | . . . . . . . . . . . Hacking Detections 41 | . 7 . . . 5 14 11 . . 4 Full Trace Events 3 | . 1 . . . 1 1 . . . . Feedback Events . | . . . . . . . . . . . Feedback Blocked . | . . . . . . . . . . . Robot Schematics Acquired . | . . . . . . . . . . . Robots Built . | . . . . . . . . . . . Authchips . | . . . . . . . . . . . Time . | . . . . . . . . . . . Total Robot Build Rating . | . . . . . . . . . . . Part Schematics Acquired 4 | . . . . . 1 2 1 . . . Parts Built . | . . . . . . . . . . . Authchips . | . . . . . . . . . . . Time . | . . . . . . . . . . . Total Part Build Rating . | . . . . . . . . . . . Parts Repaired . | . . . . . . . . . . . Time . | . . . . . . . . . . . Parts Recycled . | . . . . . . . . . . . Recycled Matter . | . . . . . . . . . . . Retrieved Matter . | . . . . . . . . . . . Retrieved Components . | . . . . . . . . . . . Parts Scanalyzed 2 | . . . . . 1 1 . . . . Part Schematics Acquired 2 | . . . . . 1 1 . . . . Parts Damaged . | . . . . . . . . . . . Bothacking | -11 -10 -10 -10 -9 -8 -7 -6 -5 -5 -4 ------------ Run | Yrd Mat Min Exi Min Mat Fac Fac Fac DSF Fac Used RIF Installer . | . . . . . . . . . . . Robots Hacked . | . . . . . . . . . . . Non-combat . | . . . . . . . . . . . Combat . | . . . . . . . . . . . Robot Hacks Applied . | . . . . . . . . . . . Relay Couplers Released 2 | . . . . . . 2 . . . . Programmers 2 | . . . . . . 2 . . . . Fabnet Peak Effective % . | . . . . . . . . . . . Robots Rewired . | . . . . . . . . . . . Allies Hacked . | . . . . . . . . . . . Hacks Repelled . | . . . . . . . . . . . Allies | -11 -10 -10 -10 -9 -8 -7 -6 -5 -5 -4 -------- Run | Yrd Mat Min Exi Min Mat Fac Fac Fac DSF Fac Total Allies 8 | . . . . 3 . 2 3 . . . Largest Group 3 | . . . . 3 2 2 2 . . . Highest-Rated Group 40 | . . . . 40 24 24 36 . . . Highest-Rated Ally 26 | . . . . 16 16 16 26 . . . Total Orders 15 | . . . . . 3 5 7 . . . STAY 8 | . . . . . 2 2 4 . . . ROAM 2 | . . . . . . 2 . . . . FOLLOW 5 | . . . . . 1 1 3 . . . Ally Attacks 39 | . . . . 22 6 11 . . . . Total Damage 361 | . . . . 216 22 123 . . . . Kills 10 | . . . . 9 . 1 . . . . Allies Corrupted 1 | . . . . . . . 1 . . . Allies Melted . | . . . . . . . . . . . Intel | -11 -10 -10 -10 -9 -8 -7 -6 -5 -5 -4 ------- Run | Yrd Mat Min Exi Min Mat Fac Fac Fac DSF Fac Robot Analysis Total . | . . . . . . . . . . . Derelict Logs Recovered 4 | . . 2 . 2 . . . . . . Drone Launches . | . . . . . . . . . . . Drone Recoveries . | . . . . . . . . . . . Exploration | -11 -10 -10 -10 -9 -8 -7 -6 -5 -5 -4 ------------- Run | Yrd Mat Min Exi Min Mat Fac Fac Fac DSF Fac Turns Passed 10034 | 3 906 949 387 1471 2169 1778 1684 3 207 477 Spaces Moved 8000 | 1 490 558 226 573 936 1675 2994 5 67 475 Core 150 | . . . . . . 23 . . . 127 Treads 3197 | 1 490 558 226 573 842 507 . . . . Legs . | . . . . . . . . . . . Wheels 280 | . . . . . 94 158 . . 5 23 Hover 1673 | . . . . . . 751 597 . . 325 Flight 2700 | . . . . . . 236 2397 5 62 . Fastest Speed 27 | 160 160 160 160 240 148 27 29 27 27 50 Average Speed 97 | 160 160 160 170 240 169 82 34 27 52 62 Slowest Speed 275 | 160 240 160 240 240 240 275 115 27 120 150 Overloaded Moves . | . . . . . . . . . . . Propulsion Burnouts . | . . . . . . . . . . . Robots Hopped 15 | . . . . . . . 14 . 1 . Cave-ins Triggered . | . . . . . . . . . . . Exploration Rate (%) 57 | 1 97 97 59 97 78 53 75 1 64 14 Regions Visited 10 Branch Regions 3 Pre-discovered Areas . | . . . . . . . . . . . Known Exits Taken 3 | . . . . . . 1 1 1 . . Unknown Exits Taken 6 | 1 1 1 1 1 1 . . . . . Scrap Searched 3 | . . 1 . 2 . . . . . . Spaces Dug 47 | . 5 . . 1 7 8 26 . . . Terrain Destroyed 104 | . 5 7 . 13 7 8 26 . . 38 Melee 46 | . 5 . . 1 7 7 26 . . . Projectile 1 | . . . . . . 1 . . . . AOE 57 | . . 7 . 12 . . . . . 38 Terrain Rammed 9 | . . . . . . . . . . 9 Walls Destroyed . | . . . . . . . . . . . Machines Disabled . | . . . . . . . . . . . Actions | -11 -10 -10 -10 -9 -8 -7 -6 -5 -5 -4 --------- Run | Yrd Mat Min Exi Min Mat Fac Fac Fac DSF Fac Total 9980 | 2 565 586 229 650 1459 2014 3593 5 237 640 Wait 1507 | . 24 2 . 53 417 205 525 . 148 133 Move 7962 | . 489 557 225 572 935 1674 2967 4 64 475 Hop 13 | . . . . . . . 12 . 1 . Pick Up 74 | . 9 6 1 5 19 17 12 . 4 1 Fast Attach 44 | . 4 . . . 10 18 5 . 2 5 Attach 32 | . 1 . . . 7 8 6 1 3 6 Detach 14 | . . . . . 4 4 2 . 3 1 Swap 69 | 2 5 2 1 7 14 19 17 . 2 . Drop 64 | . 7 1 2 2 16 19 16 . 1 . Fire 118 | . 19 17 . 7 28 38 . . . 9 Melee 61 | . 7 . . 1 9 12 31 . . 1 Ram 9 | . . . . . . . . . . 9 Kick . | . . . . . . . . . . . Crush 4 | . . 1 . 3 . . . . . . Escape Stasis 9 | . . . . . . . . . 9 . Rewire . | . . . . . . . . . . . Trap . | . . . . . . . . . . . Miscellaneous . | . . . . . . . . . . . Route ------- -11/Scrapyard -10/Materials (discovered 5 exits: [*Mat x3] / [*Min x2]) -10/Mines (discovered 3 exits: [*Mat x2] / *Exi) -10/Exiles -9/Mines (discovered 2 exits: *Mat x2) -8/Materials (discovered 3 exits: *Fac / *Sto x2) -7/Factory (discovered 6 exits: *Fac x4 / *Low x2) -6/Factory (discovered 8 exits: *Fac x4 / *Low x2 / Ext x2) -5/Factory -5/DSF -4/Factory History --------- Turn | Location | Event 4 | -11/Scrapyard | Discovered new exit (range 0) 4 | -11/Scrapyard | Entered Materials 303 | -10/Materials | Build established: Mutant 319 | -10/Materials | Discovered new exit (range 7) 387 | -10/Materials | Discovered new exit (range 7) 500 | -10/Materials | Discovered new exit (range 15) 697 | -10/Materials | Discovered new exit (range 10) 775 | -10/Materials | Discovered new exit (range 16) 910 | -10/Materials | Entered Mines 976 | -10/Mines | Learned Materials terminal intel 1099 | -10/Mines | Discovered new exit (range 10) 1258 | -10/Mines | Learned 2 Materials zone layouts 1276 | -10/Mines | Found a damaged Exp. Sensor Array with a note attached 1279 | -10/Mines | Found Prototype Device 1352 | -10/Mines | Discovered new exit (range 5) 1395 | -10/Mines | A weapon hastily lodged in a ceiling crevice suddenly fell to the ground 1541 | -10/Mines | Deemed a non-threat by the Exiles lab entrance 1541 | -10/Mines | Discovered new exit (range 5) 1859 | -10/Mines | Entered Exiles 1899 | -10/Exiles | Met 8R-AWN 1928 | -10/Exiles | Met EX-HEX 1971 | -10/Exiles | Met EX-BIN 1991 | -10/Exiles | Aligned with FarCom system 1992 | -10/Exiles | Given EX-Vault access code 2029 | -10/Exiles | Opened EX-Vault 2042 | -10/Exiles | Found Cloak of Protection 2079 | -10/Exiles | Warned to stay clear of 0b10 Research branches 2096 | -10/Exiles | Exiles lab attacked by MAIN.C 2218 | -10/Exiles | Discovered new exit (range 14) 2246 | -10/Exiles | Left Exiles lab with Cloak of Protection 2246 | -10/Exiles | Entered Mines 2309 | -9/Mines | Assisted by bots powering up and referring to "LRC-V3" 2312 | -9/Mines | Learned Materials terminal intel 2379 | -9/Mines | YI-UF0 nonchalantly dropped a Grenade Launcher on the ground 2411 | -9/Mines | Murdered YI-UF0 2411 | -9/Mines | Destroyed YI-UF0 2419 | -9/Mines | Found Prototype Storage 2423 | -9/Mines | Found Corrupted Prototype Launcher 2424 | -9/Mines | Identified YI-UF0's Bottomless Matter Pit 2576 | -9/Mines | Discovered new exit (range 15) 2708 | -9/Mines | Discovered new exit (range 5) 3032 | -9/Mines | Found a hidden stash of uninstalled traps 3192 | -9/Mines | Learned Materials stockpile data 3716 | -9/Mines | Identified YI-UF0's Doublenader 3717 | -9/Mines | Entered Materials 3717 | -8/Materials | Accompanied by 2 allies 3717 | -8/Materials | Evolved 4 slots: Propulsion x2, Utility x2 3718 | -8/Materials | Identified exit to Storage 3720 | -8/Materials | Loaded intel: 12 terminal locations 4072 | -8/Materials | Lost 3 parts (2n1u) 4168 | -8/Materials | Met 7R-MNS 4270 | -8/Materials | Discovered exit to Storage (range 15) 4532 | -8/Materials | Build established: Hacker-Mutant 4556 | -8/Materials | Discovered new exit (range 16) 5886 | -8/Materials | Entered Factory 5886 | -7/Factory | Accompanied by 2 allies 5886 | -7/Factory | Evolved 2 slots: Utility x2 5887 | -7/Factory | Caught up to 7R-MNS 6359 | -7/Factory | Garrison activated, responded to threat 6628 | -7/Factory | Discovered new exit (range 14) 6780 | -7/Factory | Discovered new exit (range 15) 7096 | -7/Factory | Discovered new exit (range 11) 7300 | -7/Factory | Lost 6 parts (3n1u2w) 7489 | -7/Factory | Identified exit to Lower Caves 7489 | -7/Factory | Identified exit to Factory 7664 | -7/Factory | Entered another Factory area 7664 | -6/Factory | Accompanied by 1 ally 7664 | -6/Factory | Evolved 2 slots: Utility x2 7665 | -6/Factory | Caught up to 7R-MNS 7845 | -6/Factory | Build established: Hacker-Scout 8475 | -6/Factory | Discovered new exit (range 4) 8552 | -6/Factory | Discovered new exit (range 7) 8730 | -6/Factory | Spotted B-75 Beast 9048 | -6/Factory | Identified exit to Lower Caves 9048 | -6/Factory | Identified exit to Extension 9048 | -6/Factory | Identified exit to Factory 9348 | -6/Factory | Entered another Factory area 9348 | -5/Factory | Evolved 2 slots: Propulsion x1, Utility x1 9349 | -5/Factory | Caught up to 7R-MNS 9351 | -5/Factory | Identified exit to DSF 9351 | -5/Factory | Entered DSF 9520 | -5/DSF | Additional patrols routed to DSF 9534 | -5/DSF | Discovered new exit (range 15) 9558 | -5/DSF | Lost 8 parts (3n5u) 9558 | -5/DSF | Entered Factory 9558 | -4/Factory | Evolved 2 slots: Utility x2 9843 | -4/Factory | Build established: Hacker-Mutant 9951 | -4/Factory | Released all parts (7) 9978 | -4/Factory | Lost 9 parts (1p5n1u2w) 10016 | -4/Factory | System corruption reached 10% 10017 | -4/Factory | Core integrity fell below 50% 10028 | -4/Factory | Core integrity fell below 20% 10035 | -4/Factory | Destroyed by G-67 Veteran with Plasma Rifle Last Messages --------------- 10028_ P-70 Sage destroyed. 10028_ K-01 Serf destroyed. 10028_ Door malfunctions. 10028_ K-01 Serf destroyed. 10028_ Slug penetrates Wall. 10028_ Penetrated by Slug. 10029_ G-67 Veteran system terminally corrupted. 10029_ Adv. Heat Sink fried. 10029_ Lgt. Antimatter Reactor fried. 10029_ U-05 Engineer lays Concrete. 10031_ K-01 Serf collects debris. 10031_ P-70 Sage resets G-67 Veteran, system corruption cleaned. 10032_ Slug penetrates Wall. 10032_ Penetrated by Slug. 10032_ Plasma Rifle destroyed. 10033_ Knocked back. 10033_ Drone sends a signal. 10034_ K-01 Serf collects debris. 10034_ Acquired 24 matter. Map ----- +----------------------------------------------------+ | ?????????????????????????????????????????????????? | | ?????????????????????????????????????????????????? | | ?????????????????????????????????????????????????? | | ?????????????????????????????????????????????????? | | ?????????????????????????????????????????????????? | | ?????????????????????????????????????????????????? | | ?????????????????????????????????????????????????? | | ?????????????????????????????????????????????????? | | ?????????????????????????????????????????????????? | | ??????????????????? ?????????????????????????? | | ??????????????????# #????????????????????????? | | ??????????????????# #????????????????????????? | | ??????????????????# #????????????????????????? | | ??????????????????# #????????????????????????? | | ??????????????????# #????????????????????????? | | ??????????????????# #????????????????????????? | | ??????????????????# #############????????????? | | ??????????????????# # #????????????? | | ??????????????????# # "#????????????? | | ??????????????????# # "#????????????? | | ??????????????????+ # #????????????? | | ??????????????????# # #????????????? | | ??????????????????# # #????????????? | | ??????????????????# H# #????????????? | | ??????????????????# g * ! #????????????? | | ??????????????????# #@ = %p #????o???????? | | ??????????????????# % #g #????????????? | | ????????########??# gk! #????????????? | | ????????? ??# #k**! #????????????? | | ?????????? ?# h #=!%| #????????????? | | ??????????"""" ?# #############????????????? | | ??????????"""" # n w ?????????????? | | ??????????"""" # ?????????????? | | ??????????"""" + h ?????????????? | | ?????? w# ?????????????? | | ?????# """"""" # ?????????????? | | ?????????""""" ?### #############??????????????? | | ??????????"""" ???# #??????????????????????????? | | ???????????""" ????# #??????????????????????????? | | ?????????? ????# #??????????????????????????? | | ??????????#####???###+##########?????????????????? | | ??????????????????# #?????????????????? | | ??????????????????# #?????????????????? | | ??????????????????# #?????????????????? | | ??????????????????# #?????????????????? | | ??????????????????# #?????????????????? | | ??????????????????# ! #?????????????????? | | ??????????????????# #?????????????????? | | ??????????????????# #????????? ??????? | | ??????????????????# #?????????? ?????? | +----------------------------------------------------+ Best States ------------- Heat Dissipation 43 Energy Generation 25 Energy Capacity 310 Matter Stores 588 Matter Capacity 1800 Sight Range 16 Terrain Scan Density 10 ECM Strength 2 Cloak Strength 5 Additional Mass Support 9 Armor Coverage 450 Resistance: TH 15 Evasion (%) 64 Recoil Reduction 4 Offensive Hacking 32 Defensive Hacking 10 Authchip Count 5 Item Schematics ----------------- Hacking Suite | -8/Materials | Scanalyzed Cesium-ion Thruster | -7/Factory | Scanalyzed Cld. VTOL Module | -7/Factory | Hacked Cld. Cesium-ion Thruster | -6/Factory | Hacked Robot Schematics ------------------ None Fabricated ------------ Nothing Alien Tech Used ----------------- None Achievements -------------- None Challenges ------------ None Game ------ Seed AssemblySystemFalx Manual? 0 Play Time 02:53:33 Cumulative 47.1 hours Start 2024.04.11 @ 22:29:35 End 2024.04.12 @ 18:53:23 Sessions 5 Manual Loads 0 Difficulty Rogue Special Mode None Game No. 81 Rogue 81 Adventurer 0 Explorer 0 Win Type - Total 0 Types 0/0/0/0/0/0/0/0/0 Lore% 24 Gallery% 27 Achievement% 26 Wizard Run 0 Options --------- Layout 1 ASCII 0 Keyboard 0 Movement Mouse Keybinds 0 Fullscreen 2 Font 24/Smallcaps Map View 50x35 Zoom Use 0% Tactical HUD 1 Map Filters NONE Filters NONE Steam 1 RUN: 2d6abb0a-f99d-432e-adc9-88fe9efbdb7b